bitfinex-derivatives/quotes_ETHF0:USTF0_20250531
["timestamp","ask_amount","ask_price","bid_price","bid_amount"]
[1748653439546,3.2078,2518.2,2517.4,5.631]
[1748653439748,4.00182,2517.9,2517.5,1.3574]
[1748653440051,0.7941,2517.6,2517.5,1.3574]
[1748653440246,0.79413,2517.5,2517.4,5.631]
[1748653440446,1.34285959,2517.8,2517.3,0.00595959]
[1748653440447,0.79416,2517.4,2517.3,0.00595959]
[1748653441143,0.00595959,2517.8,2517.3,0.00595959]
[1748653441641,0.00595959,2517.8,2517.3,1.37465959]
[1748653441851,0.79411,2517.6,2517.3,1.37465959]
[1748653442040,0.00595959,2517.8,2517.3,1.37465959]
[1748653442242,0.00595959,2517.8,2517.6,3.2078]
[1748653442546,0.00595959,2517.8,2517.7,1.3687]
[1748653442748,0.79999959,2517.8,2517.7,1.3687]
[1748653442954,0.79416,2517.4,2517.3,0.00595959]
[1748653444446,0.79441,2516.6,2516.5,3.2078]
[1748653445245,0.79441,2516.6,2516.1,1.2728]
[1748653445246,3.2078,2516.6,2516.1,1.2728]
[1748653445451,0.79456,2516.2,2516.1,0.00402859]
[1748653445647,4.00236,2516.2,2516.1,0.00402859]
[1748653446747,0.00595959,2516.4,2516.1,0.00402859]
[1748653447246,3.2078,2517.5,2516.5,1.98611]
[1748653447449,1.2737,2517.4,2516.7,3.2078]
[1748653447654,1.2737,2517.4,2517.3,0.07155339]
[1748653447847,2.06786,2517.4,2517.3,0.07155339]
[1748653448252,0.79432,2516.9,2516.8,5.635]
[1748653448450,0.79438,2516.7,2516.4,5.596]
[1748653448649,3.2078,2516.9,2516.5,1.3632]
[1748653448853,3.2078,2516.8,2516.5,1.3632]
[1748653449154,3.2078,2516.8,2516.5,2.15764]
[1748653449353,3.2078,2516.8,2516.7,0.79438]
[1748653449551,3.2078,2516.8,2516.5,1.3632]
[1748653450047,4.00198,2517.4,2516.5,9.571]
[1748653450248,3.2078,2517.4,2516.8,3.2078]
[1748653450460,0.00595959,2517.6,2517.2,3.2078]
[1748653450665,0.00595959,2517.6,2517.3,2.13072339]
[1748653450950,0.00595959,2517.6,2517.3,1.33655339]
[1748653451344,0.79416,2517.4,2517.3,0.07155339]
[1748653451547,4.00196,2517.4,2517.3,0.07155339]
[1748653452160,0.79438,2516.8,2516.5,5.596]
[1748653452450,1.2795,2517.3,2516.5,5.596]
[1748653452658,3.21375959,2517.6,2517.3,0.86571339]
[1748653452846,0.80007959,2517.6,2517.4,1.2675]
[1748653453046,0.00595959,2517.6,2517.4,1.2675]
[1748653453245,0.00595959,2517.6,2517.5,0.79413]
[1748653453654,0.00595959,2517.6,2517.5,7.06163]
[1748653454254,1.3587,2518.7,2517.6,1.98523]
[1748653454459,1.3587,2518.7,2518.0,3.2078]
[1748653454756,3.2078,2518.2,2517.6,8.8038]
[1748653454958,0.79406,2517.7,2517.6,6.8635]
[1748653455153,0.79406,2517.7,2517.6,5.596]
[1748653455355,0.00595959,2517.9,2517.6,5.596]
[1748653455659,0.00595959,2517.9,2517.4,0.00595959]
[1748653455660,0.79412,2517.6,2517.4,0.00595959]
[1748653455859,4.00193,2517.5,2517.4,0.00595959]
[1748653458062,0.79417,2517.4,2516.8,0.79435]
[1748653458363,3.2078,2517.2,2516.7,1.3562]
[1748653458654,0.79435,2516.8,2516.4,5.596]
[1748653458859,3.2078,2516.9,2516.4,6.887]
[1748653459062,1.2557,2516.8,2516.4,6.887]
[1748653459259,0.79441,2516.6,2516.4,6.887]
[1748653459461,4.00224,2516.5,2516.4,6.887]
[1748653459757,1.2557,2516.8,2516.3,0.00595959]
[1748653459963,3.2078,2516.5,2516.3,0.00595959]
[1748653460353,5.25787,2516.8,2516.3,0.80043959]
[1748653460556,0.85409,2516.7,2516.4,1.291]
[1748653460752,0.0597,2516.7,2516.4,1.291]
[1748653461160,0.0597,2516.7,2516.3,0.00595959]
[1748653461464,4.00227,2516.4,2516.3,0.00595959]
[1748653462064,0.79465,2515.9,2515.6,8.8048]
[1748653462263,0.79465,2515.9,2514.9,1.98736]
[1748653462264,3.2078,2516.0,2515.3,3.2078]
[1748653462459,0.79487,2515.2,2515.0,1.3446]
[1748653462654,3.2078,2515.1,2515.0,1.3446]
[1748653462861,3.2078,2515.1,2514.6,8.8048]
[1748653462862,4.00268,2515.1,2514.6,8.8048]
[1748653463061,4.00268,2515.1,2514.7,1.3446]
[1748653463062,0.79495,2515.0,2514.7,1.3446]
[1748653463262,5.28605959,2515.1,2514.7,1.3446]
[1748653464064,4.49115959,2515.1,2514.7,1.3446]
[1748653464461,0.79493,2515.0,2514.7,1.3446]
[1748653464659,1.2774,2515.0,2514.7,1.3446]
[1748653465059,2.07233,2515.0,2514.7,1.3446]
[1748653465363,0.79496,2514.9,2514.6,8.80882859]
[1748653465563,0.79501,2514.7,2514.6,4.50592859]
[1748653465766,0.795,2514.8,2514.6,4.50592859]
[1748653465966,0.79495,2514.9,2514.6,4.50592859]
[1748653466268,1.2774,2515.0,2514.6,4.50592859]
[1748653466563,1.2774,2515.0,2514.7,1.2941]
[1748653467163,1.2774,2515.0,2514.6,3.21182859]
[1748653467164,0.79501,2514.7,2514.6,3.21182859]
[1748653467464,0.79501,2514.7,2513.2,3.8416]
[1748653467465,5.81376177,2514.7,2513.2,3.8416]
[1748653467671,5.81376177,2514.7,2513.5,3.2078]
[1748653467672,3.2078,2514.3,2513.5,3.2078]
[1748653467965,1.2765,2514.2,2513.8,3.2078]
[1748653468163,3.2078,2514.3,2513.8,3.2078]
[1748653468365,1.2765,2514.5,2512.5,0.39963925]
[1748653468366,4.00309,2513.9,2513.3,4.5523]
[1748653468569,3.21375959,2513.9,2513.4,6.3954]
[1748653468765,3.21375959,2513.9,2513.5,1.3445]
[1748653469069,0.00595959,2513.9,2513.6,3.2078]
[1748653469258,0.00595959,2513.9,2513.7,6.9445]
[1748653469467,1.2957,2514.6,2513.7,6.9445]
[1748653469468,3.2078,2515.1,2513.8,1.3445]
[1748653469661,1.98738,2514.9,2514.0,3.2078]
[1748653469970,1.98738,2514.9,2512.7,1.98905]
[1748653469971,3.2078,2514.4,2513.6,6.9445]
[1748653470172,0.7952,2514.1,2513.7,5.6]
[1748653470465,0.79526,2513.9,2513.8,1.3445]
[1748653470670,0.79533,2513.7,2513.6,0.00595959]
[1748653470862,4.00313,2513.7,2513.6,0.00595959]
[1748653471272,0.79533,2513.7,2513.6,0.00595959]
[1748653471772,2.0843,2513.8,2513.6,0.00595959]
[1748653471971,0.6381,2514.1,2513.8,0.79529]
[1748653472177,3.2078,2514.1,2513.6,0.00595959]
[1748653472478,4.00313,2513.7,2513.6,0.00595959]
[1748653472665,3.2078,2513.7,2512.7,3.2078]
[1748653472863,3.2078,2513.1,2512.8,1.3383]
[1748653473068,4.00333,2513.1,2512.8,1.3383]
[1748653473372,3.2078,2513.3,2512.8,1.3383]
[1748653473668,0.79553,2513.1,2512.8,1.3383]
[1748653473870,1.2679,2513.2,2512.9,5.602]
[1748653474068,0.6381,2513.6,2512.7,3.2078]
[1748653474370,3.2078,2513.7,2513.6,0.79536]
[1748653474569,0.79535,2513.7,2513.5,5.602]
[1748653474869,3.2078,2513.8,2513.2,5.602]
[1748653475171,1.2679,2513.7,2513.2,5.602]
[1748653475670,1.2679,2513.7,2513.4,0.79542]
[1748653475866,1.2679,2513.7,2513.3,1.2439]
[1748653476072,2.06323,2513.7,2513.6,0.07155339]
[1748653477070,1.2679,2513.7,2513.6,0.07155339]
[1748653477266,2.06323,2513.7,2513.6,0.07155339]
[1748653477771,1.2679,2513.7,2513.6,0.07155339]
[1748653477973,2.12343,2513.7,2513.6,0.07155339]
[1748653478168,1.3281,2513.7,2513.6,0.07155339]
[1748653478670,2.12343,2513.7,2513.6,0.07155339]
[1748653479261,1.98849,2513.5,2512.8,5.614]
[1748653479462,3.2078,2513.1,2512.6,1.2589]
[1748653479661,3.2078,2512.8,2512.2,3.2078]
[1748653479870,0.79569,2512.6,2512.2,3.2078]
[1748653480067,0.79574,2512.5,2512.2,4.5494]
[1748653480264,3.21375959,2512.8,2512.2,4.5494]
[1748653480463,0.00595959,2512.8,2512.3,1.3416]
[1748653480676,0.00595959,2512.8,2512.6,0.79567]
[1748653480862,0.00595959,2512.8,2512.7,0.79564]
[1748653481067,0.00595959,2512.8,2512.7,6.40964]
[1748653481275,0.00595959,2512.8,2512.7,11.40964]
[1748653481971,0.00595959,2512.8,2512.7,5.614]
[1748653482471,0.00595959,2512.8,2512.7,11.40964]
[1748653482770,3.268,2513.7,2513.2,0.79547]
[1748653482978,0.79536,2513.6,2513.2,6.41047]
[1748653483267,3.268,2513.7,2513.4,0.7954]
[1748653483471,3.268,2513.7,2513.5,1.2427]
[1748653483775,0.79536,2513.6,2513.5,1.2427]
[1748653483967,0.0602,2513.7,2513.5,1.2427]
[1748653483968,0.0602,2513.7,2513.6,0.79536]
[1748653484167,0.0602,2513.7,2513.6,0.07155339]
[1748653484367,0.0602,2513.7,2513.6,0.86691339]
[1748653484563,0.0602,2513.7,2513.6,0.07155339]
[1748653485276,0.0602,2513.7,2513.6,5.86691339]
[1748653485670,0.0602,2513.7,2513.6,0.07155339]
[1748653485964,9.06333,2513.7,2513.6,3.39e-06]
[1748653486166,0.79542,2513.4,2513.3,2.98e-06]
[1748653486375,4.00322,2513.4,2513.3,2.98e-06]
[1748653486576,9.00322,2513.4,2513.3,2.98e-06]
[1748653486881,4.00322,2513.4,2513.3,2.98e-06]
[1748653487076,3.2078,2513.4,2513.3,2.98e-06]
[1748653487382,0.79541,2513.5,2513.3,2.98e-06]
[1748653487677,0.79542,2513.4,2513.3,2.98e-06]
[1748653487878,1.3655,2513.5,2513.3,2.98e-06]
[1748653488069,0.0602,2513.7,2513.3,5.61500298]
[1748653488276,0.85553,2513.7,2513.6,0.07155339]
[1748653488676,5.85553,2513.7,2513.6,0.07155339]
[1748653488871,5.85553,2513.7,2513.3,2.98e-06]
[1748653488872,5.0602,2513.7,2513.3,2.98e-06]
[1748653489070,4.00322,2513.4,2513.3,2.98e-06]
[1748653489268,3.2078,2513.4,2513.3,2.98e-06]
[1748653489969,3.2078,2513.4,2513.3,0.79545298]
[1748653490175,3.2078,2513.4,2513.3,0.07155637]
[1748653490475,4.31409445,2513.4,2513.3,0.86700637]
[1748653490677,1.10629445,2513.4,2513.3,2.14890637]
[1748653491081,1.10629445,2513.6,2513.4,0.7954]
[1748653491281,1.10629445,2513.6,2513.5,1.2819]
[1748653491475,1.10629445,2513.6,2513.4,6.41041]
[1748653491675,3.2078,2513.5,2513.4,5.615]
[1748653491972,1.10629445,2513.6,2513.4,5.615]
[1748653491973,1.10629445,2513.6,2513.5,0.79539]
[1748653492281,1.90166445,2513.6,2513.4,5.615]
[1748653492581,1.10629445,2513.6,2513.4,5.615]
[1748653492782,0.0602,2513.7,2513.5,1.2803]
[1748653493482,0.0602,2513.7,2513.4,5.615]
[1748653493780,1.11293464,2513.6,2513.4,6.8953]
[1748653494482,1.11293464,2513.5,2513.4,6.8953]
[1748653494985,1.11293464,2513.5,2513.4,5.615]
[1748653495190,1.90832464,2513.5,2513.4,5.615]
[1748653495579,1.11293464,2513.5,2513.4,5.615]
[1748653495780,1.11293464,2513.5,2513.4,6.9097]
[1748653497382,1.11293464,2513.5,2513.4,10.91292]
[1748653497581,0.8866,2513.8,2513.7,0.79533]
[1748653497792,0.8866,2513.8,2513.7,4.00313]
[1748653498081,0.8866,2513.8,2513.7,3.2078]
[1748653498289,0.8866,2513.8,2513.7,0.79533]
[1748653498876,9.1546,2513.8,2513.3,0.07155637]
[1748653499186,0.79553,2513.1,2512.7,3.2078]
[1748653499388,0.79542,2513.4,2513.3,0.07155339]
[1748653500783,5.79542,2513.4,2513.3,0.07155339]
[1748653500983,1.98864,2513.3,2512.3,8.8228]
[1748653501183,0.79559,2512.9,2512.5,0.79571]
[1748653501477,3.2078,2513.0,2512.4,1.3742]
[1748653501686,3.2078,2513.0,2512.6,0.79566]
[1748653501886,3.2078,2513.0,2512.9,0.79558]
[1748653502385,2.95433119,2513.7,2512.9,5.615]
[1748653502386,6.16213119,2513.7,2512.9,5.615]
[1748653502590,6.16213119,2513.7,2513.3,0.79544]
[1748653502788,0.9468,2513.8,2513.4,6.9892]
[1748653503088,4.1546,2513.8,2513.4,6.9892]
[1748653503293,4.1546,2513.8,2513.0,5.615]
[1748653503294,0.79552,2513.1,2513.0,5.615]
[1748653503488,0.79563,2512.8,2512.6,3.2078]
[1748653503784,0.79552,2513.1,2512.8,0.7956]
[1748653503986,3.2078,2513.1,2512.7,5.615]
[1748653504188,0.79561,2512.8,2512.7,5.615]
[1748653504488,0.79571,2512.5,2512.4,3.39e-06]
[1748653504691,4.00351,2512.5,2512.4,3.39e-06]
[1748653504887,8.2078,2512.5,2511.7,0.79593]
[1748653505184,3.2078,2512.1,2511.8,1.291]
[1748653505388,3.2078,2512.1,2511.4,8.8228]
[1748653505389,0.79589,2512.0,2511.5,0.79602]
[1748653505593,1.2463,2512.0,2511.5,1.291]
[1748653505792,0.79602,2511.5,2511.4,3.2078]
[1748653505985,3.2078,2511.6,2511.0,6.906]
[1748653506188,1.2463,2511.4,2510.6,3.2078]
[1748653506482,1.99536959,2512.4,2511.3,3.2078]
[1748653506483,3.2078,2512.0,2511.3,3.2078]
[1748653506682,2.32093119,2512.1,2511.4,6.906]
[1748653506878,2.32093119,2512.1,2511.6,0.79599]
[1748653506879,3.11678119,2512.1,2511.6,0.79599]
[1748653507085,2.32093119,2512.1,2511.7,2.08695]
[1748653507388,0.79601,2511.6,2511.1,6.41314]
[1748653507587,3.2078,2511.6,2511.1,5.617]
[1748653507795,0.79591,2511.9,2511.4,0.79604]
[1748653507991,3.2078,2512.0,2511.3,3.2078]
[1748653508287,4.5219,2512.3,2511.6,3.2078]
[1748653508489,5.31768,2512.3,2511.8,0.79591]
[1748653508684,5.31768,2512.3,2511.9,0.7959]
[1748653508989,3.2078,2512.0,2511.7,5.617]
[1748653509187,2.11,2511.9,2511.7,5.617]
[1748653509388,2.11001,2511.9,2511.4,5.693]
[1748653509583,3.2078,2511.5,2511.4,5.693]
[1748653509891,3.2078,2511.5,2511.0,9.69696]
[1748653510186,3.2078,2512.1,2511.4,0.79605]
[1748653510388,1.2558,2512.0,2511.9,0.7959]
[1748653510584,3.2078,2512.1,2511.6,3.2078]
[1748653510894,9.59e-06,2512.4,2512.3,0.79577]
[1748653511087,9.59e-06,2512.4,2512.3,9.69757]
[1748653511286,3.07264048,2513.6,2512.3,13.9018]
[1748653511482,3.07264048,2513.6,2513.5,0.79539]
[1748653511688,1.939,2514.2,2513.7,0.79533]
[1748653511887,1.939,2514.2,2513.7,4.00313]
[1748653512186,0.23008082,2513.8,2513.7,9.00313]
[1748653512495,3.2078,2514.4,2514.3,0.79514]
[1748653512789,0.6832,2514.9,2514.3,3.2078]
[1748653512985,3.2078,2515.1,2514.4,1.2657]
[1748653513290,1.2558,2515.0,2514.5,0.79504]
[1748653513491,3.2078,2514.6,2514.2,5.693]
[1748653513883,3.2078,2514.9,2514.3,0.79511]
[1748653514083,3.2078,2514.5,2513.9,3.2078]
[1748653514285,3.2078,2514.1,2514.0,5.693]
[1748653514493,3.2078,2514.1,2514.0,0.31618815]
[1748653514691,3.2078,2514.1,2513.5,0.00597193]
[1748653514894,0.79533,2513.7,2513.6,0.31604523]
[1748653515091,3.2078,2513.8,2513.5,0.00597193]
[1748653515286,1.2949,2514.3,2513.5,0.00597193]
[1748653515588,3.2078,2513.9,2513.5,0.00597193]
[1748653515784,4.00316,2513.6,2513.5,0.00597193]
[1748653515998,4.00316,2513.6,2512.7,5.692]
[1748653515999,3.2078,2513.6,2512.7,5.692]
[1748653516295,3.2078,2513.9,2513.3,3.2078]
[1748653516499,1.2949,2514.3,2513.3,3.2078]
[1748653516500,3.2078,2514.2,2513.3,8.8998]
[1748653516792,3.2078,2514.2,2513.6,3.2078]
[1748653516990,3.21377193,2514.2,2513.6,3.21377193]
[1748653517296,0.79533,2513.7,2513.6,0.00597193]
[1748653517792,5.79533,2513.7,2513.6,0.00597193]
[1748653517990,4.00307,2513.9,2513.6,0.00597193]
[1748653518192,3.2078,2513.9,2513.6,0.00597193]
[1748653518491,4.00307,2513.9,2513.6,0.00597193]
[1748653518691,0.79533,2513.7,2513.6,0.00597193]
[1748653519189,0.79543,2513.4,2513.0,3.2078]
[1748653519393,3.2078,2513.4,2513.0,3.2078]
[1748653519591,3.2078,2513.8,2513.3,0.79543]
[1748653519796,3.2078,2513.8,2513.4,10.1899]
[1748653519996,3.2078,2513.8,2513.5,5.692]
[1748653520192,3.2078,2513.8,2513.5,6.9821]
[1748653520394,0.00597193,2514.2,2513.7,3.2078]
[1748653520699,3.2078,2514.6,2514.1,3.2078]
[1748653520898,3.2078,2514.6,2514.2,6.9821]
[1748653521195,3.2078,2514.6,2514.2,5.692]
[1748653521401,3.2078,2515.0,2514.5,3.2078]
[1748653521588,3.2078,2515.3,2515.1,0.79488]
[1748653521796,0.79486,2515.2,2515.0,5.692]
[1748653522101,0.79492,2515.0,2514.9,0.00597193]
[1748653522795,3.2078,2515.3,2515.0,0.7949]
[1748653522995,0.00597193,2515.5,2514.9,1.32267193]
[1748653523298,0.00597193,2515.5,2515.4,4.00259]
[1748653523597,0.00597193,2515.5,2515.4,9.69359]
[1748653523797,0.80073193,2515.5,2515.4,8.8988]
[1748653523998,0.79479,2515.4,2515.3,5.691]
[1748653524300,0.00597193,2515.5,2515.4,0.79479]
[1748653524506,0.00597193,2515.5,2515.4,2.11149]
[1748653524702,0.00597193,2515.5,2515.4,7.11149]
[1748653525004,0.00597193,2515.5,2515.4,1.3167]
[1748653525194,0.00597193,2515.5,2515.4,6.3167]
[1748653525501,0.80073193,2515.5,2515.4,1.3167]
[1748653525697,0.00597193,2515.5,2515.4,7.11149]
[1748653526199,0.00597193,2515.5,2515.4,6.3167]
[1748653526403,0.00597193,2515.5,2515.0,3.2078]
[1748653526404,0.79488,2515.1,2515.0,3.2078]
[1748653526697,0.79489,2515.1,2514.9,5.69597193]
[1748653526900,0.79482,2515.3,2514.9,5.69597193]
[1748653527103,0.79486,2515.2,2514.9,7.04867193]
[1748653527302,0.00597193,2515.5,2514.9,7.04867193]
[1748653527500,0.79491,2515.0,2514.9,5.69597193]
[1748653527701,0.676,2515.4,2514.9,5.69597193]
[1748653528099,0.00597193,2515.5,2515.0,3.2078]
[1748653528300,0.00597193,2515.5,2515.1,1.67158323]
[1748653528605,0.00597193,2515.5,2515.4,0.79479]
[1748653528905,4.00853193,2515.5,2515.4,5.689]
[1748653529302,0.00597193,2515.5,2515.4,5.689]
[1748653529499,0.00597193,2515.5,2515.2,5.689]
[1748653529998,0.7948,2515.4,2515.2,5.689]
[1748653530199,0.79482,2515.3,2515.2,5.689]
[1748653530400,3.2078,2515.4,2515.2,5.689]
[1748653530599,0.80074193,2515.5,2515.2,5.689]
[1748653530600,4.00262,2515.3,2515.2,5.689]
[1748653530805,3.2078,2515.4,2515.2,5.689]
[1748653531103,0.00597193,2515.5,2515.4,0.79479]
[1748653531402,3.2078,2516.5,2515.5,1.98686]
[1748653531603,4.00225,2516.5,2516.0,0.7946]
[1748653531805,0.79449,2516.4,2516.1,1.3359]
[1748653532004,0.6728,2516.9,2516.1,1.3359]
[1748653532005,3.2078,2516.8,2516.2,3.2078]
[1748653532206,3.2078,2516.8,2516.7,0.79438]
[1748653532502,3.2078,2517.5,2516.7,5.689]
[1748653532801,0.79431,2516.9,2516.4,3.2078]
[1748653533002,3.2078,2517.0,2516.2,7.03087193]
[1748653533205,0.7944,2516.7,2516.2,7.03087193]
[1748653533399,0.00595948,2516.7,2516.2,7.03087193]
[1748653533611,0.80034948,2516.7,2516.2,7.82539193]
[1748653533902,0.00595948,2516.7,2516.2,7.03087193]
[1748653534098,0.00595948,2516.7,2516.3,1.3359]
[1748653534506,0.79442,2516.6,2516.3,1.3359]
[1748653534797,1.29625948,2516.7,2516.5,3.2078]
[1748653535005,0.00595948,2516.7,2516.5,3.2078]
[1748653535201,0.00595948,2516.7,2516.6,1.3268]
[1748653535396,0.00595948,2516.7,2516.6,2.12121]
[1748653535603,0.00595948,2516.7,2516.6,6.3268]
[1748653535813,0.00595948,2516.7,2516.6,7.12121]
[1748653536014,0.00595948,2516.7,2516.6,6.3268]
[1748653536399,0.00595948,2516.7,2516.6,2.12121]
[1748653536704,0.80033948,2516.7,2516.6,7.34816044]
[1748653536909,0.00595948,2516.7,2516.6,7.0138]
[1748653537210,0.79433,2516.9,2516.6,7.0138]
[1748653537411,0.79433,2516.9,2516.7,1.66114042]
[1748653537610,0.79433,2516.9,2516.8,1.2411]
[1748653538005,0.79438,2516.7,2516.5,3.2078]
[1748653538210,0.00595948,2517.1,2516.6,5.686]
[1748653538409,0.00595948,2517.1,2517.0,0.79428]
[1748653538611,0.00595948,2517.1,2516.8,3.2078]
[1748653538911,0.00595948,2517.1,2516.9,1.2411]
[1748653539306,0.79414,2517.5,2517.0,0.79427]
[1748653539507,0.79411,2517.6,2517.1,11.3212351]
[1748653539707,1.2565,2518.1,2517.2,1.2411]
[1748653539909,0.79419,2517.3,2517.2,1.2411]
[1748653540112,0.79419,2517.3,2517.2,6.9841]
[1748653540316,0.00595948,2517.5,2517.2,6.9841]
[1748653540613,0.79417,2517.4,2517.2,6.9841]
[1748653541106,0.00595948,2517.5,2517.2,7.7783]
[1748653541314,0.00595948,2517.5,2517.2,6.9841]
[1748653541613,0.00595948,2517.5,2517.3,0.32448962]
[1748653541914,0.7942,2517.3,2516.9,6.5373]
[1748653542116,0.7942,2517.3,2517.0,1.3371]
[1748653542315,1.2529,2517.4,2517.0,4.5449]
[1748653542611,0.00595948,2517.5,2517.0,4.5449]
[1748653542806,0.00595948,2517.5,2517.1,0.3238867]
[1748653543002,0.80009948,2517.5,2517.2,5.742]
[1748653543208,0.79416,2517.4,2517.2,5.742]
[1748653543411,1.25885948,2517.5,2517.2,5.742]
[1748653543610,0.79418,2517.4,2517.2,5.742]
[1748653543813,0.1981,2517.4,2517.2,5.742]
[1748653544011,0.1981,2517.4,2517.2,6.5362]
[1748653544207,0.79425,2517.1,2517.0,3.2078]
[1748653544413,3.2078,2517.2,2516.6,0.33424754]
[1748653544611,0.79438,2516.7,2516.6,0.33424754]
[1748653546008,3.2078,2516.9,2516.6,0.33424754]
[1748653546711,1.98572,2517.0,2516.6,0.33424754]
[1748653546920,4.00218,2516.7,2516.6,0.33424754]
[1748653547510,9.00218,2516.7,2516.6,0.33424754]
[1748653548019,4.00218,2516.7,2516.6,0.33424754]
[1748653548218,0.7945,2516.3,2516.2,5.74797193]
[1748653548420,0.7945,2516.3,2516.2,0.00597193]
[1748653548716,0.79476,2515.5,2515.2,5.742]
[1748653548920,0.79495,2514.9,2514.8,5.742]
[1748653549112,1.3036,2515.4,2514.8,5.742]
[1748653549317,0.79491,2515.1,2514.8,5.742]
[1748653549618,0.00595948,2515.2,2514.8,5.742]
[1748653549815,1.32375948,2515.2,2514.8,5.742]
[1748653550023,0.00595948,2515.2,2514.9,1.2797]
[1748653550321,0.79498,2514.8,2514.7,5.74795948]
[1748653550920,0.79496,2514.9,2514.7,5.74795948]
[1748653551119,0.00595948,2515.2,2514.7,5.74795948]
[1748653551422,0.79498,2514.8,2514.7,5.74795948]
[1748653552116,1.95815948,2515.2,2514.7,5.74795948]
[1748653552322,1.95815948,2515.2,2514.9,0.79493]
[1748653552517,0.00595948,2515.2,2514.8,4.4875]
[1748653553322,0.00595948,2515.2,2515.1,0.79488]
[1748653553525,0.00595948,2515.2,2514.8,4.4875]
[1748653553915,0.00595948,2515.2,2514.9,0.79493]
[1748653554117,0.00595948,2515.2,2515.1,0.79488]
[1748653554418,0.00595948,2515.2,2514.7,5.74795948]
[1748653554622,0.79492,2515.0,2514.7,5.74795948]
[1748653554824,1.2703,2514.9,2514.7,5.74795948]
[1748653555417,0.79489,2515.1,2514.7,5.74795948]
[1748653555618,1.2703,2515.1,2514.7,5.74795948]
[1748653555917,0.79494,2515.0,2514.7,5.74795948]
[1748653556317,0.79498,2514.8,2514.7,5.74795948]
[1748653556519,1.3357,2514.9,2514.7,5.74795948]
[1748653556720,3.21375948,2515.2,2514.7,5.74795948]
[1748653556721,0.79498,2514.8,2514.7,5.74795948]
[1748653556920,1.3357,2515.1,2514.7,5.74795948]
[1748653557121,0.79492,2515.0,2514.7,5.74795948]
[1748653557326,1.3357,2515.1,2514.7,5.74795948]
[1748653557524,3.21375948,2515.2,2514.8,1.3664]
[1748653557720,4.00862948,2515.2,2514.8,2.16136]
[1748653557921,0.79489,2515.1,2514.8,2.16136]
[1748653558121,3.21375948,2515.2,2514.7,5.74795948]
[1748653558319,1.3357,2515.0,2514.7,5.74795948]
[1748653558522,2.13062,2515.0,2514.7,5.74795948]
[1748653558826,1.3357,2515.0,2514.7,5.74795948]
[1748653559122,3.21375948,2515.2,2514.9,0.79493]
[1748653559521,3.21375948,2515.2,2515.0,2.1206]
[1748653559722,3.21375948,2515.2,2515.1,0.79488]
[1748653559919,0.00595948,2515.2,2515.1,0.79488]
[1748653560120,3.8422,2516.1,2515.1,5.0]
[1748653560323,3.2078,2516.8,2516.4,0.79447]
[1748653560631,4.4965,2516.8,2516.4,0.79447]
[1748653560828,4.4965,2516.8,2516.2,8.9518]
[1748653561022,4.4965,2516.8,2516.6,0.07155339]
[1748653561224,0.6405,2517.2,2516.6,0.07155339]
[1748653561225,0.00595948,2517.0,2516.7,5.744]
[1748653561529,2.54215342,2517.4,2516.8,3.2078]
[1748653561729,2.54215342,2517.4,2517.3,0.79419]
[1748653562026,0.1981,2517.4,2517.3,6.53819]
[1748653562331,1.2887,2517.9,2517.3,10.744]
[1748653562535,1.37209205,2517.9,2517.5,3.2078]
[1748653562728,1.37209205,2517.9,2517.3,5.744]
[1748653562923,0.79416,2517.4,2517.3,5.744]
[1748653563123,1.98532,2517.5,2516.6,5.81555339]
[1748653563324,0.79438,2516.7,2516.6,5.81555339]
[1748653563535,3.2078,2516.7,2516.6,5.81555339]
[1748653563729,3.2078,2517.1,2516.6,5.81555339]
[1748653563925,4.00218,2516.7,2516.6,0.07155339]
[1748653564428,9.00218,2516.7,2516.6,0.07155339]
[1748653564624,3.2078,2516.7,2516.6,0.07155339]
[1748653564831,4.5789,2517.0,2516.6,0.07155339]
[1748653565224,0.79431,2516.9,2516.5,5.743]
[1748653565423,1.2744,2516.8,2516.5,5.743]
[1748653565623,3.2078,2517.0,2516.5,7.0914]
[1748653565819,3.2078,2517.0,2516.6,0.79439]
[1748653566019,0.7944,2516.7,2516.4,3.21375948]
[1748653566225,3.2078,2516.5,2515.8,5.743]
[1748653566524,3.2078,2516.1,2515.4,5.743]
[1748653566721,3.2078,2515.8,2515.4,5.743]
[1748653567522,3.2078,2515.5,2515.4,5.743]
[1748653567724,1.2744,2515.7,2515.4,5.743]
[1748653567928,1.2744,2515.7,2515.4,7.0978]
[1748653567929,2.0691,2515.7,2515.4,7.0978]
[1748653568632,3.21375948,2515.9,2515.4,11.10037]
[1748653568835,3.21375948,2515.9,2515.4,7.0978]
[1748653569033,0.79472,2515.7,2515.4,5.743]
[1748653569328,4.00840948,2515.9,2515.4,5.743]
[1748653569533,4.00840948,2515.9,2515.3,0.00595948]
[1748653569534,0.79479,2515.4,2515.3,0.00595948]
[1748653569831,3.2078,2515.5,2515.3,0.00595948]
[1748653570024,0.79479,2515.4,2515.3,0.00595948]
[1748653570827,2.15739,2515.4,2515.3,0.00595948]
[1748653571227,3.2078,2515.5,2515.3,0.00595948]
[1748653571425,0.00595948,2515.9,2515.3,8.21375948]
[1748653571627,0.00595948,2515.9,2515.8,4.00246]
[1748653571837,0.00595948,2515.9,2515.8,5.813]
[1748653572135,8.21375948,2515.9,2515.3,0.00595948]
[1748653572439,0.79471,2515.7,2515.3,0.00595948]
[1748653572735,0.79471,2515.7,2515.3,1.28525948]
[1748653573125,0.79479,2515.4,2515.3,0.00595948]
[1748653573331,5.79479,2515.4,2515.3,9.48e-06]
[1748653573929,7.06919,2515.4,2515.3,9.48e-06]
[1748653574126,28.30719,2515.4,2515.3,9.48e-06]
[1748653574327,1.98754,2514.7,2513.8,0.00887482]
[1748653574632,3.2078,2514.1,2513.8,0.00887482]
[1748653575027,0.79524,2514.0,2513.8,0.00887482]